fUSD/lending_fUSD_20250421
["ID","MTS","AMOUNT","RATE_DAILY","PERIOD"]
[358582525,1745273566569,-863.91,0.00053698,120]
[358582526,1745273566582,-1668.61,0.00053698,120]
[358582527,1745273566592,-1419.16,0.00053698,120]
[358582528,1745273566601,-1001.34,0.00053698,120]
[358582529,1745273566610,-500.0,0.00053698,120]
[358582530,1745273566619,-2387.71,0.00053698,120]
[358582531,1745273566628,-1099.51,0.00053698,120]
[358582532,1745273566638,-657.93,0.00053698,120]
[358582533,1745273566647,-786.17,0.00053698,120]
[358582534,1745273566657,-1738.61,0.00053698,120]
[358582535,1745273566666,-1177.97,0.00053698,120]
[358582536,1745273566676,-1533.1,0.00053698,120]
[358582537,1745273566686,-500.0,0.00053698,120]
[358582538,1745273566696,-601.4,0.00053698,120]
[358582539,1745273566705,-604.48,0.00053698,120]
[358582540,1745273566714,-947.57,0.00053698,120]
[358582541,1745273566723,-1198.33,0.00053698,120]
[358582542,1745273566733,-779.43,0.00053698,120]
[358582543,1745273566742,-580.05,0.00053698,120]
[358582544,1745273566751,-927.9,0.00053698,120]
[358582545,1745273566760,-1505.54,0.00053698,120]
[358582546,1745273566770,-635.74,0.00053698,120]
[358582547,1745273566779,-729.68,0.00053698,120]
[358582548,1745273566788,-1567.41,0.00053698,120]
[358582549,1745273566798,-1953.23,0.00053698,120]
[358582550,1745273566807,-1438.84,0.00053698,120]
[358582551,1745273566817,-2454.44,0.00053698,120]
[358582552,1745273566827,-951.19,0.00053698,120]
[358582553,1745273566837,-500.0,0.00053698,120]
[358582554,1745273566846,-1772.65,0.00053698,120]
[358582555,1745273566855,-1520.58,0.00053698,120]
[358582556,1745273566865,-1100.31,0.00053698,120]
[358582557,1745273566874,-2906.42,0.00053698,120]
[358582558,1745273566885,-1134.03,0.00053698,120]
[358582559,1745273566895,-765.04,0.00053698,120]
[358582560,1745273566905,-658.02,0.00053698,120]
[358582561,1745273566915,-702.96,0.00053698,120]
[358582562,1745273566927,-687.2,0.00053698,120]
[358582563,1745273566936,-1543.41,0.00053698,120]
[358582564,1745273566946,-1256.12,0.00053698,120]
[358582565,1745273566957,-621.72,0.00053698,120]
[358582566,1745273566967,-506.68,0.00053698,120]
[358582567,1745273566976,-1317.58,0.00053698,120]
[358582568,1745273566985,-500.0,0.00053698,120]
[358582569,1745273566995,-685.99,0.00053698,120]
[358582570,1745273567004,-821.12,0.00053698,120]
[358582571,1745273567014,-797.08,0.00053698,120]
[358582572,1745273567023,-1948.41,0.00053698,120]
[358582573,1745273567033,-1659.14,0.00053698,120]
[358582574,1745273567042,-1221.11,0.00053698,120]
[358582575,1745273567052,-1048.75,0.00053698,120]
[358582576,1745273567061,-1335.52,0.00053698,120]
[358582577,1745273567071,-816.95,0.00053698,120]
[358582578,1745273567080,-672.04,0.00053698,120]
[358582579,1745273567090,-1122.27,0.00053698,120]
[358582580,1745273567099,-500.0,0.00053698,120]
[358582581,1745273567108,-583.75,0.00053698,120]
[358582582,1745273567118,-762.02,0.00053698,120]
[358582583,1745273567127,-941.01,0.00053698,120]
[358582584,1745273567136,-1158.5,0.00053698,120]
[358582585,1745273567146,-772.47,0.00053698,120]
[358582586,1745273567155,-583.01,0.00053698,120]
[358582587,1745273567164,-973.17,0.00053698,120]
[358582588,1745273567174,-867.69,0.00053698,120]
[358582589,1745273567183,-321.79854536,0.00053698,120]
[358582590,1745273567192,-901.45,0.00053698,120]
[358582591,1745273567202,-1047.72,0.00053698,120]
[358582592,1745273567212,-996.82,0.00053698,120]
[358582593,1745273567221,-1136.8,0.00053698,120]
[358582594,1745273567230,-919.49,0.00053698,120]
[358582595,1745273567240,-1393.67,0.00053698,120]
[358582596,1745273567250,-1952.74,0.00053698,120]
[358582597,1745273567259,-3067.74,0.00053698,120]
[358582598,1745273567269,-1668.15,0.00053698,120]
[358582599,1745273567278,-1022.68,0.00053698,120]
[358582600,1745273567287,-662.83,0.00053698,120]
[358582601,1745273567296,-1574.74,0.00053698,120]
[358582602,1745273567306,-500.0,0.00053698,120]
[358582603,1745273567315,-1020.13,0.00053698,120]
[358582604,1745273567325,-574.9,0.00053698,120]
[358582605,1745273567335,-981.52,0.00053698,120]
[358582606,1745273567344,-956.86,0.00053698,120]
[358582607,1745273567353,-500.0,0.00053698,120]
[358582608,1745273567363,-673.68,0.00053698,120]
[358582609,1745273567372,-1117.56,0.00053698,120]
[358582610,1745273567381,-1471.8,0.00053698,120]
[358582611,1745273567390,-618.02,0.00053698,120]
[358582612,1745273567399,-1450.05,0.00053698,60]
[358582613,1745273567408,-1910.22,0.00053698,120]
[358582614,1745273567418,-997.29,0.00053698,120]
[358582615,1745273567432,-500.0,0.00053698,120]
[358582616,1745273567442,-525.77,0.00053698,120]
[358582617,1745273567452,-3115.83,0.00053698,120]
[358582618,1745273567462,-3275.5,0.00053698,120]
[358582619,1745273567471,-1074.12,0.00053698,120]
[358582620,1745273567480,-1056.06,0.00053698,120]
[358582621,1745273567490,-1721.58,0.00053698,120]
[358582622,1745273567503,-500.0,0.00053698,120]
[358582623,1745273567513,-298.96,0.00053698,120]
[358582624,1745273567522,-1422.93,0.00053698,120]
[358582625,1745273567533,-500.0,0.00053698,120]
[358582626,1745273567542,-834.44,0.00053698,120]
[358582627,1745273567552,-743.09,0.00053698,120]
[358582628,1745273567561,-500.0,0.00053698,120]
[358582629,1745273567571,-2831.35,0.00053698,120]
[358582630,1745273567580,-3209.48,0.00053698,120]
[358582631,1745273567590,-500.0,0.00053698,120]
[358582632,1745273567600,-671.48,0.00053698,120]
[358582633,1745273567609,-583.29,0.00053698,120]
[358582634,1745273567619,-1070.05,0.00053698,120]
[358582635,1745273567628,-973.67,0.00053698,120]
[358582636,1745273567638,-1375.34,0.00053698,120]
[358582637,1745273567647,-7001.07,0.00053698,120]
[358582638,1745273567656,-2437.85,0.00053698,120]
[358582639,1745273567665,-1522.45,0.00053698,120]
[358582640,1745273567674,-2289.63,0.00053698,120]
[358582641,1745273567683,-829.97,0.00053698,120]
[358582642,1745273567691,-1573.28,0.00053698,120]
[358582643,1745273567700,-148396.62,0.00053698,7]
[358582644,1745273567710,-783.77,0.00053698,120]
[358582645,1745273567719,-2454.7,0.00053698,120]
[358582646,1745273567728,-527.57,0.00053698,120]
[358582647,1745273567736,-1343.12,0.00053698,120]
[358582648,1745273567745,-2236.11,0.00053698,120]
[358582649,1745273567754,-612.25,0.00053698,120]
[358582650,1745273567763,-500.0,0.00053698,120]
[358582651,1745273567772,-963.95,0.00053698,120]
[358582652,1745273567780,-997.67,0.00053698,120]
[358582653,1745273567789,-1289.89,0.00053698,120]
[358582654,1745273567799,-655.96,0.00053698,120]
[358582655,1745273567807,-678.03,0.00053698,120]
[358582656,1745273567816,-569.75,0.00053698,120]
[358582657,1745273567825,-1596.74,0.00053698,120]
[358582658,1745273567834,-3240.43,0.00053698,120]
[358582659,1745273567843,-518.73,0.00053698,120]
[358582660,1745273567851,-891.42,0.00053698,120]
[358582661,1745273567861,-1959.65,0.00053698,120]
[358582662,1745273567869,-511.37,0.00053698,120]
[358582663,1745273567878,-804.59,0.00053698,120]
[358582664,1745273567887,-2145.1,0.00053698,120]
[358582665,1745273567896,-261.47266845,0.00053698,120]
[358582666,1745273567905,-5109.84,0.00053698,120]
[358582667,1745273567914,-1484.19,0.00053698,120]
[358582668,1745273567924,-561.55,0.00053698,120]
[358582669,1745273567933,-1100.11,0.00053698,118]
[358582670,1745273567942,-859.56,0.00053698,120]
[358582671,1745273567951,-574.2,0.00053698,120]
[358582672,1745273567960,-2581.69,0.00053698,120]
[358582673,1745273567969,-1348.97,0.00053698,120]
[358582674,1745273567978,-596.37,0.00053698,120]
[358582675,1745273567988,-889.4,0.00053698,120]
[358582676,1745273567996,-948.97,0.00053698,120]
[358582677,1745273568006,-868.91,0.00053698,120]
[358582678,1745273568015,-2009.27,0.00053698,120]
[358582679,1745273568024,-717.21,0.00053698,120]
[358582680,1745273568033,-1570.7,0.00053698,120]
[358582681,1745273568043,-1677.09,0.00053698,35]
[358582682,1745273568052,-1058.05,0.00053698,120]
[358582683,1745273568061,-500.0,0.00053698,120]
[358582684,1745273568070,-1248.18,0.00053698,120]
[358582685,1745273568081,-508.66,0.00053698,120]
[358582686,1745273568091,-616.38,0.00053698,120]
[358582687,1745273568100,-2278.19,0.00053698,120]
[358582688,1745273568110,-1336.46,0.00053698,120]
[358582689,1745273568120,-2099.91,0.00053698,120]
[358582690,1745273568129,-1053.78,0.00053698,120]
[358582691,1745273568139,-831.47,0.00053698,120]
[358582692,1745273568148,-2998.83,0.00053698,120]
[358582693,1745273568159,-248.73711747,0.00053698,120]
[358582694,1745273568168,-1357.54,0.00053698,120]
[358582695,1745273568179,-743.94,0.00053698,120]
[358582696,1745273568189,-1579.09,0.00053698,120]
[358582697,1745273568199,-500.0,0.00053698,120]
[358582698,1745273568209,-2781.12,0.00053698,120]
[358582699,1745273568219,-1075.24,0.00053698,30]
[358582700,1745273568229,-592.06,0.00053698,120]
[358582701,1745273568238,-575.54,0.00053698,120]
[358582702,1745273568248,-1637.73,0.00053698,120]
[358582703,1745273568257,-1561.76,0.00053698,120]
[358582704,1745273568266,-1456.28,0.00053698,120]
[358582705,1745273568276,-2605.24,0.00053698,120]
[358582706,1745273568286,-853.74,0.00053698,120]
[358582707,1745273568295,-2220.57,0.00053698,120]
[358582708,1745273568305,-901.27,0.00053698,120]
[358582709,1745273568314,-2212.34,0.00053698,120]
[358582710,1745273568324,-598.39,0.00053698,120]
[358582711,1745273568333,-578.81,0.00053698,120]
[358582712,1745273568342,-1275.11,0.00053698,120]
[358582713,1745273568351,-2355.08,0.00053698,120]
[358582714,1745273568361,-1605.45,0.00053698,120]
[358582715,1745273568371,-2547.52,0.00053698,120]
[358582716,1745273568380,-1104.86,0.00053698,120]
[358582717,1745273568389,-2642.88,0.00053698,120]
[358582718,1745273568399,-737.39,0.00053698,120]
[358582719,1745273568409,-1339.26,0.00053698,120]
[358582720,1745273568420,-1748.44,0.00053698,2]
[358582721,1745273568431,-662.24,0.00053698,120]
[358582722,1745273568441,-798.15,0.00053698,120]
[358582723,1745273568451,-1174.25,0.00053698,120]
[358582724,1745273568460,-5495.09,0.00053698,120]
[358582725,1745273568470,-39265.1842108,0.00053698,30]
[358582726,1745273568480,-39265.1842108,0.00053698,30]
[358582727,1745273568490,-39265.1842108,0.00053698,30]
[358582728,1745273568500,-39265.1842108,0.00053698,30]
[358582729,1745273568511,-399.0,0.000537,30]
[358582730,1745273568521,-13351.74163476,0.00053728,24]
[358582731,1745273568531,-2000.0,0.000538,2]
[358582732,1745273568540,-200.0,0.000539,96]
[358582733,1745273568550,-200.0,0.000539,96]
[358582734,1745273568559,-194.11105237,0.00053972,32]
[358582735,1745273568569,-50000.0,0.00054,54]
[358582736,1745273568579,-10000.0,0.00054,10]
[358582737,1745273568589,-200.0,0.00054,96]
[358582738,1745273568598,-1464.82985884,0.00054,120]
[358582739,1745273568607,-500.0,0.00054,120]
[358582740,1745273568617,-800.0,0.00054,120]
[358582741,1745273568626,-900.0,0.00054,55]
[358582742,1745273568635,-54184.95,0.00054,60]
[358582743,1745273568645,-1656.741814,0.00054246,120]
[358582744,1745273568655,-500.406308,0.00054246,120]
[358582745,1745273568664,-500.0,0.00054246,120]
[358582746,1745273568673,-864.57,0.00054246,120]
[358582747,1745273568683,-211.55256488,0.00054246,120]
[358582748,1745273568693,-674.89,0.00054246,120]
[358582749,1745273568703,-1669.69,0.00054246,120]
[358582750,1745273568712,-791.37,0.00054246,120]
[358582751,1745273568721,-1023.25,0.00054246,120]
[358582752,1745273568731,-1458.87,0.00054246,60]
[358582753,1745273568740,-529.82,0.00054246,120]
[358582754,1745273568750,-969.44,0.00054246,120]
[358582755,1745273568760,-629.509786,0.00054246,120]
[358582756,1745273568770,-160.633239,0.00054246,120]
[358582757,1745273568780,-690.93,0.00054246,120]
[358582758,1745273568790,-593.3,0.00054246,120]
[358582759,1745273568800,-1494.4,0.00054246,120]
[358582760,1745273568810,-815.18,0.00054246,120]
[358582761,1745273568820,-2474.26,0.00054246,120]
[358582762,1745273568830,-847.59,0.00054246,120]
[358582763,1745273568840,-847.27,0.00054246,120]
[358582764,1745273568849,-710.84,0.00054246,120]
[358582765,1745273568859,-1515.36,0.00054246,120]
[358582766,1745273568868,-1385.14,0.00054246,120]
[358582767,1745273568877,-585.36,0.00054246,120]
[358582768,1745273568886,-540.95,0.00054246,120]
[358582769,1745273568896,-2340.33,0.00054246,120]
[358582770,1745273568905,-623.44,0.00054246,120]
[358582771,1745273568915,-500.0,0.00054246,120]
[358582772,1745273568924,-826.96,0.00054246,120]
[358582773,1745273568934,-519.36,0.00054246,120]
[358582774,1745273568943,-1297.18,0.00054246,120]
[358582775,1745273568953,-514.13,0.00054246,120]
[358582776,1745273568963,-980.71,0.00054246,120]
[358582777,1745273568973,-706.63,0.00054246,120]
[358582778,1745273568982,-579.09,0.00054246,120]
[358582779,1745273568991,-858.69,0.00054246,120]
[358582780,1745273569000,-881.75,0.00054246,120]
[358582781,1745273569009,-711.53,0.00054246,120]
[358582782,1745273569019,-884.65,0.00054246,120]
[358582783,1745273569028,-904.67,0.00054246,120]
[358582784,1745273569038,-1183.26,0.00054246,120]
[358582785,1745273569048,-1290.34,0.00054246,120]
[358582786,1745273569058,-546.21,0.00054246,120]
[358582787,1745273569067,-863.91,0.00054246,120]
[358582788,1745273569078,-1668.61,0.00054246,120]
[358582789,1745273569088,-1419.16,0.00054246,120]
[358582790,1745273569097,-1001.34,0.00054246,120]
[358582791,1745273569107,-500.0,0.00054246,120]
[358582792,1745273569116,-2387.71,0.00054246,120]
[358582793,1745273569126,-1099.51,0.00054246,120]
[358582794,1745273569135,-657.93,0.00054246,120]
[358582795,1745273569145,-786.17,0.00054246,120]
[358582796,1745273569155,-1738.61,0.00054246,120]
[358582797,1745273569165,-1177.97,0.00054246,120]
[358582798,1745273569175,-1533.1,0.00054246,120]
[358582799,1745273569185,-500.0,0.00054246,120]
[358582800,1745273569195,-601.4,0.00054246,120]
[358582801,1745273569206,-604.48,0.00054246,120]
[358582802,1745273569216,-947.57,0.00054246,120]
[358582803,1745273569226,-1198.33,0.00054246,120]
[358582804,1745273569236,-779.43,0.00054246,120]
[358582805,1745273569246,-580.05,0.00054246,120]
[358582806,1745273569255,-927.9,0.00054246,120]
[358582807,1745273569265,-1505.54,0.00054246,120]
[358582808,1745273569275,-635.74,0.00054246,120]
[358582809,1745273569286,-729.68,0.00054246,120]
[358582810,1745273569296,-1567.41,0.00054246,120]
[358582811,1745273569306,-1953.23,0.00054246,120]
[358582812,1745273569316,-1438.84,0.00054246,120]
[358582813,1745273569328,-2454.44,0.00054246,120]
[358582814,1745273569338,-951.19,0.00054246,120]
[358582815,1745273569348,-408.29,0.00054246,120]
[358582816,1745273569357,-1772.65,0.00054246,120]
[358582817,1745273569368,-1520.58,0.00054246,120]
[358582818,1745273569378,-1100.31,0.00054246,120]
[358582819,1745273569388,-2906.42,0.00054246,120]
[358582820,1745273569398,-1134.03,0.00054246,120]
[358582821,1745273569408,-765.04,0.00054246,120]
[358582822,1745273569418,-658.02,0.00054246,120]
[358582823,1745273569431,-702.96,0.00054246,120]
[358582824,1745273569440,-687.2,0.00054246,120]
[358582825,1745273569450,-1543.41,0.00054246,120]
[358582826,1745273569460,-1256.12,0.00054246,120]
[358582827,1745273569471,-621.72,0.00054246,120]
[358582828,1745273569481,-506.68,0.00054246,120]
[358582829,1745273569490,-1317.58,0.00054246,120]
[358582830,1745273569502,-500.0,0.00054246,120]
[358582831,1745273569512,-685.99,0.00054246,120]
[358582832,1745273569522,-821.12,0.00054246,120]
[358582833,1745273569532,-797.08,0.00054246,120]
[358582834,1745273569542,-1948.41,0.00054246,120]
[358582835,1745273569552,-1659.14,0.00054246,120]
[358582836,1745273569562,-1221.11,0.00054246,120]
[358582837,1745273569572,-1048.75,0.00054246,120]
[358582838,1745273569582,-1335.52,0.00054246,120]
[358582839,1745273569592,-816.95,0.00054246,120]
[358582840,1745273569602,-672.04,0.00054246,120]
[358582841,1745273569611,-1122.27,0.00054246,120]
[358582842,1745273569621,-500.0,0.00054246,120]
[358582843,1745273569630,-583.75,0.00054246,120]
[358582844,1745273569640,-762.02,0.00054246,120]
[358582845,1745273569650,-941.01,0.00054246,120]
[358582846,1745273569659,-1158.5,0.00054246,120]
[358582847,1745273569672,-772.47,0.00054246,120]
[358582848,1745273569682,-583.01,0.00054246,120]
[358582849,1745273569691,-973.17,0.00054246,120]
[358582850,1745273569701,-867.69,0.00054246,120]
[358582851,1745273569710,-901.45,0.00054246,120]
[358582852,1745273569719,-1047.72,0.00054246,120]
[358582853,1745273569729,-996.82,0.00054246,120]
[358582854,1745273569738,-1136.8,0.00054246,120]
[358582855,1745273569747,-919.49,0.00054246,120]
[358582856,1745273569757,-1393.67,0.00054246,120]
[358582857,1745273569767,-1952.74,0.00054246,120]
[358582858,1745273569777,-3067.74,0.00054246,120]
[358582859,1745273569786,-1668.15,0.00054246,120]
[358582860,1745273569796,-1022.68,0.00054246,120]
[358582861,1745273569809,-662.83,0.00054246,120]
[358582862,1745273569818,-1574.74,0.00054246,120]
[358582863,1745273569828,-500.0,0.00054246,120]
[358582864,1745273569837,-1020.13,0.00054246,120]
[358582865,1745273569848,-574.9,0.00054246,120]
[358582866,1745273569859,-981.52,0.00054246,120]
[358582867,1745273569870,-956.86,0.00054246,120]
[358582868,1745273569879,-500.0,0.00054246,120]
[358582869,1745273569889,-673.68,0.00054246,120]
[358582870,1745273569899,-1117.56,0.00054246,120]
[358582871,1745273569908,-1471.8,0.00054246,120]
[358582872,1745273569917,-1450.05,0.00054246,60]
[358582873,1745273569927,-1910.22,0.00054246,120]
[358582874,1745273569937,-997.29,0.00054246,120]
[358582875,1745273569947,-500.0,0.00054246,120]
[358582876,1745273569958,-525.77,0.00054246,120]
[358582877,1745273569969,-3115.83,0.00054246,120]
[358582878,1745273569981,-3275.5,0.00054246,120]
[358582879,1745273569993,-1074.12,0.00054246,120]
[358582880,1745273570004,-1056.06,0.00054246,120]
[358582881,1745273570014,-1721.58,0.00054246,120]
[358582882,1745273570023,-500.0,0.00054246,120]
[358582883,1745273570033,-1422.93,0.00054246,120]
[358582884,1745273570044,-500.0,0.00054246,120]
[358582885,1745273570054,-834.44,0.00054246,120]
[358582886,1745273570064,-743.09,0.00054246,120]
[358582887,1745273570075,-500.0,0.00054246,120]
[358582888,1745273570084,-2831.35,0.00054246,120]
[358582889,1745273570094,-3209.48,0.00054246,120]
[358582890,1745273570104,-618.42691416,0.00054246,120]
[358582891,1745273570114,-671.48,0.00054246,120]
[358582892,1745273570124,-583.29,0.00054246,120]
[358582893,1745273570134,-1070.05,0.00054246,120]
[358582894,1745273570144,-973.67,0.00054246,120]
[358582895,1745273570155,-1375.34,0.00054246,120]
[358582896,1745273570166,-7001.07,0.00054246,120]
[358582897,1745273570176,-2437.85,0.00054246,120]
[358582898,1745273570186,-1522.45,0.00054246,120]
[358582899,1745273570196,-2289.63,0.00054246,120]
[358582900,1745273570206,-829.97,0.00054246,120]
[358582901,1745273570215,-1573.28,0.00054246,120]
[358582902,1745273570224,-47756.83802103,0.00054246,7]
[358582903,1745273581809,687.0463,0.00019873,3]
[358582904,1745273663315,687.0463,0.00019873,4]
[358582905,1745273789708,472.7606,0.000198,5]
[358582906,1745273915358,472.7606,0.00019786,6]
[358582907,1745274020074,472.7606,0.00019786,7]
[358582908,1745274146055,472.7606,0.00019773,8]
[358582909,1745274272163,472.7606,0.00019773,9]
[358582910,1745274376858,472.7606,0.00019773,10]
[358582911,1745274477566,298.8142677,0.000198,7]
[358582912,1745274502851,472.7606,0.00019773,11]
[358582918,1745274629065,472.7606,0.00019773,12]
[358582923,1745274631704,-180.069976,0.00019503,2]
[358582924,1745274631713,-250.0,0.00019603,2]
[358582925,1745274631723,-250.0,0.00019713,2]
[358582926,1745274631732,-333.83010398,0.00019773,2]
[358582927,1745274631777,-1840.36993761,0.00019773,2]
[358582928,1745274631983,-1743.68135841,0.00019773,2]
[358582930,1745274631993,-2500.0,0.00019773,2]
[358582931,1745274632002,-157.2867,0.00019773,2]
[358582932,1745274632011,-3167.1674,0.00019773,2]
[358582933,1745274632021,-1437.6633,0.00019773,2]
[358582934,1745274632033,-2785.62300285,0.00019773,2]
[358582935,1745274632043,-1000.0,0.00019786,2]
[358582936,1745274632053,-2785.6230028,0.00019787,2]
[358582938,1745274632062,-3289.92793255,0.00019799,2]
[358582939,1745274632071,-2259.2377,0.000198,2]
[358582941,1745274632081,-2123.89657909,0.000198,2]
[358582955,1745274637884,-415.10267437,0.000198,2]
[358582956,1745274638077,-11189.71564654,0.000198,2]
[358582957,1745274638087,-46512.76682914,0.000198,2]
[358582958,1745274638096,-170.22702338,0.000198,2]
[358582959,1745274638106,-2785.6230028,0.00019801,2]
[358582960,1745274638115,-2785.6230028,0.00019815,2]
[358582961,1745274638125,-2785.6230028,0.00019829,2]
[358582962,1745274638134,-2785.6230028,0.00019844,2]
[358582963,1745274638143,-2785.6230028,0.00019858,2]
[358582965,1745274638152,-122867.0499,0.00019873,2]
[358582966,1745274638162,-165.63823045,0.00019873,2]
[358582967,1745274638171,-500.0,0.00019873,2]
[358582969,1745274638180,-500.0,0.00019873,2]
[358582970,1745274638190,-200.0,0.00019873,2]
[358582971,1745274638199,-9796.3047,0.00019886,2]
[358582972,1745274638207,-500.0,0.00019886,2]
[358582973,1745274638216,-1000.0,0.00019886,2]
[358582974,1745274638225,-3470.33,0.00019886,2]
[358582975,1745274638234,-11016.73765245,0.000199,2]
[358582976,1745274638243,-103990.32548886,0.000199,2]
[358582977,1745274638251,-934.1242,0.000199,2]
[358582978,1745274638260,-965.75548596,0.000199,2]
[358582979,1745274638269,-3286.74302138,0.000199,2]
[358582980,1745274638278,-1862.05030106,0.000199,2]
[358582981,1745274638287,-2583.0,0.00019973,2]
[358582982,1745274638295,-643.34112161,0.00019973,2]
[358582984,1745274638305,-500.0,0.00019973,2]
[358582986,1745274638314,-500.0,0.00019973,2]
[358582988,1745274638323,-211.08872435,0.00019973,2]
[358582990,1745274638332,-500.0,0.00019973,2]
[358582992,1745274638341,-300.0,0.00019999,2]
[358582994,1745274638351,-500.0,0.00019999,2]
[358582995,1745274638360,-21876.37201981,0.00019999,2]
[358582997,1745274638369,-1446851.14358477,0.0002,2]
[358583000,1745274638381,-2955771.08740354,0.0002,2]
[358583068,1745274645825,-2785.6230028,0.00019872,2]
[358583069,1745274645836,-1581.32852683,0.0002,2]
[358583070,1745274645848,-5177.864675,0.0002,2]
[358583081,1745275044846,2004.35,0.000195,3]
[358583083,1745275686045,315.3,0.00017744,2]
[358583100,1745275838243,-284.99376117,0.00019591,2]
[358583101,1745275838260,-15.00623883,0.00019591,2]
[358583102,1745275838269,-23900.0,0.00019592,2]
[358583103,1745275838279,-250.0,0.00019596,2]
[358583104,1745275838288,-1593.297,0.000196,2]
[358583105,1745275838297,-176.84849338,0.000196,2]
[358583106,1745275838307,-8295.0,0.00019772,2]
[358583107,1745275838316,-896.7283,0.00019773,2]
[358583108,1745275838326,-1000.0,0.00019773,2]
[358583109,1745275838335,-4423.3065,0.00019773,2]
[358583110,1745275838345,-500.0,0.00019786,2]
[358583111,1745275838355,-17296.607,0.000199,2]
[358583112,1745275838365,-154.01981524,0.000199,2]
[358583113,1745275838375,-934.1242,0.000199,2]
[358583114,1745275838384,-164.70128771,0.000199,2]
[358583115,1745275838393,-2207.2317,0.000199,2]
[358583116,1745275838403,-767.157,0.000199,2]
[358583117,1745275838412,-534.5893,0.000199,2]
[358583118,1745275838422,-557.12460056,0.000199,2]
[358583119,1745275838431,-2500.0,0.000199,2]
[358583120,1745275838440,-204.12977817,0.000199,2]
[358583121,1745275838450,-965.75548596,0.000199,2]
[358583122,1745275838459,-1000.0,0.000199,2]
[358583123,1745275838468,-557.12460056,0.0001991,2]
[358583124,1745275838478,-557.12460056,0.00019921,2]
[358583125,1745275838488,-557.12460056,0.00019931,2]
[358583126,1745275838499,-557.12460056,0.00019942,2]
[358583127,1745275838509,-557.12460056,0.00019952,2]
[358583128,1745275838518,-557.12460056,0.00019963,2]
[358583129,1745275838528,-2583.0,0.00019973,2]
[358583130,1745275838538,-500.0,0.00019973,2]
[358583131,1745275838548,-557.12460056,0.00019973,2]
[358583132,1745275838558,-557.12460056,0.00019984,2]
[358583133,1745275838568,-557.12460056,0.00019994,2]
[358583134,1745275838578,-300.0,0.00019999,2]
[358583135,1745275838588,-500.0,0.00019999,2]
[358583136,1745275838598,-300.0,0.00019999,2]
[358583137,1745275838608,-500.0,0.00019999,2]
[358583138,1745275838618,-500.0,0.00019999,2]
[358583139,1745275838628,-1402980.87035405,0.0002,2]
[358583140,1745275838640,-2752876.61789946,0.0002,2]
[358583141,1745275838650,-202894.46950408,0.0002,2]
[358583143,1745275840147,-1228.65339242,0.0002,2]
[358583144,1745275840159,-10342.85860827,0.0002,2]
[358583145,1745275840243,-5039185.49465836,0.0002,2]
[358583146,1745275840255,-1792.4000004,0.0002,2]
[358583147,1745275840266,-1041.1660869,0.0002,2]
[358583148,1745275840281,-560.02752628,0.0002,2]
[358583149,1745275840361,-22674.38141239,0.0002,2]
[358583150,1745275840463,-405.555575,0.0002,2]
[358583155,1745275843031,-16877.44626585,0.0002,2]
[358583168,1745275844583,-743.71812526,0.0002,2]
[358583171,1745275846271,-3286.74302138,0.000199,2]
[358583172,1745275846280,-1862.05030106,0.000199,2]
[358583173,1745275846289,-2724.20667756,0.0002,2]